fUSD/lending_fUSD_20250911
["ID","MTS","AMOUNT","RATE_DAILY","PERIOD"]
[384915958,1757626291418,-400.0,0.00027671,7]
[384915959,1757626291427,-486.2,0.00027671,7]
[384915960,1757626291436,-2932.86,0.00027671,7]
[384915961,1757626291446,-696.98,0.00027671,7]
[384915962,1757626291455,-832.9,0.00027671,7]
[384915963,1757626291464,-414.03440759,0.00027671,7]
[384915964,1757626291473,-2078.71,0.00027671,7]
[384915965,1757626291483,-822.96,0.00027671,7]
[384915966,1757626291491,-2730.94,0.00027671,7]
[384915967,1757626291500,-685.8,0.00027671,7]
[384915968,1757626291510,-400.0,0.00027671,7]
[384915969,1757626291519,-400.0,0.00027671,7]
[384915970,1757626291527,-1342.93,0.00027671,7]
[384915971,1757626291536,-400.0,0.00027671,7]
[384915972,1757626291545,-1491.25,0.00027671,7]
[384915973,1757626291555,-1538.21,0.00027671,7]
[384915974,1757626291771,-400.0,0.00027671,7]
[384915975,1757626291781,-400.0,0.00027671,7]
[384915976,1757626291792,-400.0,0.00027671,7]
[384915977,1757626291801,-1275.28,0.00027671,7]
[384915978,1757626291811,-1803.54,0.00027671,7]
[384915979,1757626291821,-400.0,0.00027671,7]
[384915980,1757626291831,-997.64,0.00027671,7]
[384915981,1757626291845,-400.0,0.00027671,7]
[384915982,1757626291855,-400.0,0.00027671,7]
[384915983,1757626291864,-1783.19,0.00027671,7]
[384915984,1757626291873,-400.0,0.00027671,7]
[384915985,1757626291884,-400.0,0.00027671,7]
[384915986,1757626291894,-1045.82,0.00027671,7]
[384915987,1757626291903,-641.81,0.00027671,7]
[384915988,1757626291912,-1603.41,0.00027671,7]
[384915989,1757626291922,-400.0,0.00027671,5]
[384915990,1757626291932,-400.0,0.00027671,7]
[384915991,1757626291941,-2627.43,0.00027671,7]
[384915992,1757626291950,-400.0,0.00027671,7]
[384915993,1757626291959,-400.0,0.00027671,7]
[384915994,1757626291968,-784.08,0.00027671,7]
[384915995,1757626291978,-962.63,0.00027671,7]
[384915996,1757626291987,-2213.66,0.00027671,7]
[384915997,1757626291996,-400.0,0.00027671,7]
[384915998,1757626292005,-425.29,0.00027671,7]
[384915999,1757626292014,-743.5,0.00027671,7]
[384916000,1757626292023,-400.0,0.00027671,7]
[384916001,1757626292032,-400.0,0.00027671,7]
[384916002,1757626292042,-400.0,0.00027671,7]
[384916003,1757626292051,-2019.4,0.00027671,7]
[384916004,1757626292061,-400.0,0.00027671,7]
[384916005,1757626292071,-904.62,0.00027671,7]
[384916006,1757626292081,-1457.73,0.00027671,7]
[384916007,1757626292090,-400.0,0.00027671,7]
[384916008,1757626292099,-423.5,0.00027671,7]
[384916009,1757626292109,-2025.57,0.00027671,7]
[384916010,1757626292118,-953.35,0.00027671,7]
[384916011,1757626292127,-1452.91,0.00027671,7]
[384916012,1757626292137,-400.0,0.00027671,7]
[384916013,1757626292146,-2053.18,0.00027671,7]
[384916014,1757626292155,-400.0,0.00027671,7]
[384916015,1757626292165,-565.88,0.00027671,7]
[384916016,1757626292175,-2044.32,0.00027671,7]
[384916017,1757626292186,-400.0,0.00027671,7]
[384916018,1757626292196,-400.0,0.00027671,7]
[384916019,1757626292206,-658.19,0.00027671,7]
[384916020,1757626292215,-400.0,0.00027671,7]
[384916021,1757626292225,-2385.36,0.00027671,7]
[384916022,1757626292234,-400.0,0.00027671,7]
[384916023,1757626292243,-400.0,0.00027671,7]
[384916024,1757626292252,-736.18,0.00027671,7]
[384916025,1757626292262,-400.0,0.00027671,7]
[384916026,1757626292271,-448.93,0.00027671,7]
[384916027,1757626292280,-400.0,0.00027671,7]
[384916028,1757626292289,-2261.13,0.00027671,7]
[384916029,1757626292299,-1040.49,0.00027671,7]
[384916030,1757626292308,-400.0,0.00027671,7]
[384916031,1757626292317,-400.0,0.00027671,7]
[384916032,1757626292327,-400.0,0.00027671,7]
[384916033,1757626292336,-400.0,0.00027671,7]
[384916034,1757626292346,-749.68,0.00027671,7]
[384916035,1757626292355,-400.0,0.00027671,7]
[384916036,1757626292365,-400.0,0.00027671,7]
[384916037,1757626292374,-567.81,0.00027671,7]
[384916038,1757626292384,-1986.67,0.00027671,7]
[384916039,1757626292394,-400.0,0.00027671,7]
[384916040,1757626292403,-549.87,0.00027671,7]
[384916041,1757626292412,-400.0,0.00027671,7]
[384916042,1757626292422,-681.02,0.00027671,7]
[384916043,1757626292432,-400.0,0.00027671,7]
[384916044,1757626292441,-2260.55,0.00027671,7]
[384916045,1757626292450,-400.0,0.00027671,7]
[384916046,1757626292460,-400.0,0.00027671,7]
[384916047,1757626292471,-1385.17,0.00027671,7]
[384916048,1757626292480,-2548.5,0.00027671,7]
[384916049,1757626292489,-1677.29,0.00027671,7]
[384916050,1757626292499,-400.0,0.00027671,7]
[384916051,1757626292508,-400.0,0.00027671,7]
[384916052,1757626292518,-205.90804498,0.00027671,7]
[384916053,1757626292527,-400.0,0.00027671,7]
[384916054,1757626292536,-459.53,0.00027671,7]
[384916055,1757626292545,-1200.36,0.00027671,7]
[384916056,1757626292555,-400.0,0.00027671,7]
[384916057,1757626292564,-400.0,0.00027671,7]
[384916058,1757626292574,-224.03114287,0.00027671,7]
[384916059,1757626292583,-995.94,0.00027671,7]
[384916060,1757626292593,-400.0,0.00027671,7]
[384916061,1757626292602,-2126.29,0.00027671,7]
[384916062,1757626292611,-400.0,0.00027671,7]
[384916063,1757626292621,-400.0,0.00027671,7]
[384916064,1757626292630,-2469.8,0.00027671,7]
[384916065,1757626292639,-400.0,0.00027671,7]
[384916066,1757626292649,-1758.06,0.00027671,7]
[384916067,1757626292658,-400.0,0.00027671,7]
[384916068,1757626292668,-1162.11,0.00027671,7]
[384916069,1757626292678,-400.0,0.00027671,7]
[384916070,1757626292686,-400.0,0.00027671,7]
[384916071,1757626292695,-400.0,0.00027671,7]
[384916072,1757626292705,-330.31206961,0.00027671,7]
[384916073,1757626292714,-1306.33,0.00027671,7]
[384916074,1757626292723,-1698.41,0.00027671,7]
[384916075,1757626292733,-2018.88,0.00027671,7]
[384916076,1757626292742,-433.72544989,0.00027671,7]
[384916077,1757626292752,-400.0,0.00027671,7]
[384916078,1757626292761,-400.0,0.00027671,7]
[384916079,1757626292770,-2397.17,0.00027671,7]
[384916080,1757626292779,-400.0,0.00027671,7]
[384916081,1757626292788,-1271.58,0.00027671,7]
[384916082,1757626292798,-2052.19,0.00027671,7]
[384916083,1757626292807,-2044.03,0.00027671,7]
[384916084,1757626292816,-400.0,0.00027671,7]
[384916085,1757626292827,-400.0,0.00027671,7]
[384916086,1757626292836,-400.0,0.00027671,7]
[384916087,1757626292850,-400.0,0.00027671,7]
[384916088,1757626292860,-831.79,0.00027671,7]
[384916089,1757626292871,-1062.11,0.00027671,7]
[384916090,1757626292880,-400.0,0.00027671,7]
[384916091,1757626292891,-441.56,0.00027671,7]
[384916092,1757626292900,-400.0,0.00027671,7]
[384916093,1757626292910,-400.0,0.00027671,7]
[384916094,1757626292919,-559.55,0.00027671,7]
[384916095,1757626292928,-400.0,0.00027671,7]
[384916096,1757626292939,-400.0,0.00027671,7]
[384916097,1757626292949,-400.0,0.00027671,7]
[384916098,1757626292958,-400.0,0.00027671,7]
[384916099,1757626292968,-441.89,0.00027671,7]
[384916100,1757626292977,-400.0,0.00027671,7]
[384916101,1757626292987,-1143.39,0.00027671,7]
[384916102,1757626292996,-400.0,0.00027671,7]
[384916103,1757626293006,-1004.3,0.00027671,7]
[384916104,1757626293015,-1506.48,0.00027671,7]
[384916105,1757626293025,-3007.71,0.00027671,7]
[384916106,1757626293034,-400.0,0.00027671,7]
[384916107,1757626293044,-400.0,0.00027671,7]
[384916108,1757626293054,-400.0,0.00027671,7]
[384916109,1757626293063,-529.33,0.00027671,7]
[384916110,1757626293073,-1571.96,0.00027671,7]
[384916111,1757626293083,-2075.43,0.00027671,7]
[384916112,1757626293093,-1064.41,0.00027671,7]
[384916113,1757626293103,-450.02,0.00027671,7]
[384916114,1757626293112,-400.0,0.00027671,7]
[384916115,1757626293122,-2649.39,0.00027671,7]
[384916116,1757626293131,-1841.88,0.00027671,7]
[384916117,1757626293141,-409.73376597,0.00027671,7]
[384916118,1757626293151,-400.0,0.00027671,7]
[384916119,1757626293161,-400.0,0.00027671,7]
[384916120,1757626293171,-400.0,0.00027671,7]
[384916121,1757626293179,-400.0,0.00027671,7]
[384916122,1757626293190,-400.0,0.00027671,7]
[384916123,1757626293199,-1226.44,0.00027671,7]
[384916124,1757626293209,-400.0,0.00027671,7]
[384916125,1757626293218,-2089.66,0.00027671,7]
[384916126,1757626293228,-643.18,0.00027671,7]
[384916127,1757626293238,-400.0,0.00027671,7]
[384916128,1757626293247,-400.0,0.00027671,7]
[384916129,1757626293259,-1244.17,0.00027671,7]
[384916130,1757626293268,-423.40641382,0.00027671,7]
[384916131,1757626293278,-436.86,0.00027671,7]
[384916132,1757626293287,-1393.94,0.00027671,7]
[384916133,1757626293296,-3399.68,0.00027671,7]
[384916134,1757626293306,-400.0,0.00027671,7]
[384916135,1757626293315,-400.0,0.00027671,7]
[384916136,1757626293325,-400.0,0.00027671,7]
[384916137,1757626293334,-400.0,0.00027671,7]
[384916138,1757626293343,-400.0,0.00027671,7]
[384916139,1757626293353,-2112.03,0.00027671,7]
[384916140,1757626293362,-400.0,0.00027671,7]
[384916141,1757626293371,-400.0,0.00027671,7]
[384916142,1757626293381,-708.69,0.00027671,7]
[384916143,1757626293390,-935.47,0.00027671,7]
[384916144,1757626293400,-1725.36,0.00027671,7]
[384916145,1757626293410,-419.41510248,0.00027671,7]
[384916146,1757626293420,-400.0,0.00027671,7]
[384916147,1757626293430,-2387.31,0.00027671,7]
[384916148,1757626293439,-400.0,0.00027671,7]
[384916149,1757626293449,-421.21571124,0.00027671,7]
[384916150,1757626293459,-651.03,0.00027671,7]
[384916151,1757626293469,-540.47,0.00027671,7]
[384916152,1757626293478,-400.0,0.00027671,7]
[384916153,1757626293488,-400.0,0.00027671,7]
[384916154,1757626293497,-400.0,0.00027671,7]
[384916155,1757626293507,-612.78,0.00027671,7]
[384916156,1757626293516,-1149.46,0.00027671,7]
[384916157,1757626293526,-400.0,0.00027671,7]
[384916158,1757626293535,-458.86,0.00027671,7]
[384916159,1757626293545,-400.0,0.00027671,7]
[384916160,1757626293555,-1844.87,0.00027671,7]
[384916161,1757626293564,-418.93,0.00027671,7]
[384916162,1757626293575,-400.0,0.00027671,7]
[384916163,1757626293585,-1688.98,0.00027671,7]
[384916164,1757626293595,-1956.8,0.00027671,7]
[384916165,1757626293605,-400.0,0.00027671,7]
[384916166,1757626293615,-1057.03,0.00027671,7]
[384916167,1757626293624,-1253.53,0.00027671,7]
[384916168,1757626293634,-2079.82,0.00027671,7]
[384916169,1757626293644,-628.63,0.00027671,7]
[384916170,1757626293654,-400.0,0.00027671,7]
[384916171,1757626293663,-400.0,0.00027671,7]
[384916172,1757626293673,-400.0,0.00027671,7]
[384916173,1757626293681,-2073.27,0.00027671,7]
[384916174,1757626293690,-1258.68,0.00027671,7]
[384916175,1757626293698,-2019.1,0.00027671,7]
[384916176,1757626293707,-400.0,0.00027671,7]
[384916177,1757626293716,-400.0,0.00027671,7]
[384916178,1757626293725,-400.0,0.00027671,7]
[384916179,1757626293735,-400.0,0.00027671,7]
[384916180,1757626293744,-400.0,0.00027671,7]
[384916181,1757626293754,-400.0,0.00027671,7]
[384916182,1757626293764,-400.0,0.00027671,7]
[384916183,1757626293773,-400.0,0.00027671,7]
[384916184,1757626293783,-400.0,0.00027671,7]
[384916185,1757626293793,-400.0,0.00027671,7]
[384916186,1757626293803,-407.89562842,0.00027671,7]
[384916187,1757626293813,-400.0,0.00027671,7]
[384916188,1757626293823,-1935.16,0.00027671,7]
[384916189,1757626293832,-2636.78,0.00027671,7]
[384916190,1757626293844,-400.0,0.00027671,7]
[384916191,1757626293855,-400.0,0.00027671,7]
[384916192,1757626293864,-400.0,0.00027671,7]
[384916193,1757626293874,-1453.84,0.00027671,7]
[384916194,1757626293884,-400.0,0.00027671,7]
[384916195,1757626293895,-2425.05,0.00027671,7]
[384916196,1757626293904,-400.0,0.00027671,7]
[384916197,1757626293914,-400.0,0.00027671,7]
[384916198,1757626293925,-1887.94,0.00027671,7]
[384916199,1757626293935,-400.0,0.00027671,7]
[384916200,1757626293944,-400.0,0.00027671,7]
[384916201,1757626293954,-1456.37,0.00027671,7]
[384916202,1757626293964,-400.0,0.00027671,7]
[384916203,1757626293974,-400.0,0.00027671,7]
[384916204,1757626293984,-400.0,0.00027671,7]
[384916205,1757626293994,-1850.46,0.00027671,7]
[384916206,1757626294004,-2681.97,0.00027671,7]
[384916207,1757626294014,-400.0,0.00027671,7]
[384916208,1757626294024,-400.0,0.00027671,7]
[384916209,1757626294034,-400.0,0.00027671,7]
[384916210,1757626294045,-400.0,0.00027671,7]
[384916211,1757626294055,-630.47,0.00027671,7]
[384916212,1757626294066,-400.0,0.00027671,7]
[384916213,1757626294076,-400.0,0.00027671,7]
[384916214,1757626294086,-2791.18,0.00027671,7]
[384916215,1757626294096,-400.0,0.00027671,7]
[384916216,1757626294107,-1809.49,0.00027671,7]
[384916217,1757626294117,-400.0,0.00027671,7]
[384916218,1757626294127,-536.03,0.00027671,7]
[384916219,1757626294136,-2203.86,0.00027671,7]
[384916220,1757626294146,-400.0,0.00027671,7]
[384916221,1757626294156,-400.0,0.00027671,7]
[384916222,1757626294167,-946.16,0.00027671,7]
[384916223,1757626294177,-400.0,0.00027671,7]
[384916224,1757626294186,-400.0,0.00027671,7]
[384916225,1757626294196,-2481.63,0.00027671,7]
[384916226,1757626294206,-2379.49,0.00027671,7]
[384916227,1757626294216,-400.0,0.00027671,7]
[384916228,1757626294226,-667.48,0.00027671,7]
[384916229,1757626294235,-1218.33,0.00027671,7]
[384916230,1757626294246,-1635.29,0.00027671,7]
[384916231,1757626294255,-400.0,0.00027671,7]
[384916232,1757626294265,-400.0,0.00027671,7]
[384916233,1757626294275,-400.0,0.00027671,7]
[384916234,1757626294285,-1784.88,0.00027671,7]
[384916235,1757626294294,-400.0,0.00027671,7]
[384916236,1757626294304,-4560.96,0.00027671,7]
[384916237,1757626294313,-400.0,0.00027671,7]
[384916238,1757626294323,-400.0,0.00027671,7]
[384916239,1757626294332,-1818.34,0.00027671,7]
[384916240,1757626294342,-400.0,0.00027671,7]
[384916241,1757626294352,-1686.69,0.00027671,7]
[384916242,1757626294362,-1594.0,0.00027671,7]
[384916243,1757626294371,-400.0,0.00027671,7]
[384916244,1757626294381,-3870.16,0.00027671,7]
[384916245,1757626294393,-400.0,0.00027671,7]
[384916246,1757626294403,-1694.83,0.00027671,7]
[384916247,1757626294413,-400.0,0.00027671,7]
[384916248,1757626294423,-1238.81,0.00027671,7]
[384916249,1757626294434,-974.29,0.00027671,7]
[384916250,1757626294443,-400.0,0.00027671,7]
[384916251,1757626294453,-400.0,0.00027671,7]
[384916252,1757626294463,-773.41,0.00027671,7]
[384916253,1757626294472,-400.0,0.00027671,7]
[384916254,1757626294482,-1992.59,0.00027671,7]
[384916255,1757626294491,-622.6,0.00027671,7]
[384916256,1757626294501,-400.0,0.00027671,7]
[384916257,1757626294510,-400.0,0.00027671,7]
[384916258,1757626294519,-400.0,0.00027671,7]
[384916259,1757626294528,-486.61,0.00027671,7]
[384916260,1757626294538,-1798.86,0.00027671,7]
[384916261,1757626294548,-189.48897329,0.00027671,7]
[384916262,1757626294557,-1303.38,0.00027671,7]
[384916263,1757626294567,-841.32,0.00027671,7]
[384916264,1757626294577,-1239.07,0.00027671,7]
[384916265,1757626294587,-2442.97,0.00027671,7]
[384916266,1757626294597,-400.0,0.00027671,7]
[384916267,1757626294607,-1923.8,0.00027671,7]
[384916268,1757626294617,-400.0,0.00027671,7]
[384916269,1757626294627,-3491.33,0.00027671,7]
[384916270,1757626294636,-1699.21,0.00027671,7]
[384916271,1757626294646,-400.0,0.00027671,7]
[384916272,1757626294656,-400.0,0.00027671,7]
[384916273,1757626294666,-411.6,0.00027671,7]
[384916274,1757626294676,-400.0,0.00027671,7]
[384916275,1757626294686,-402.3450358,0.00027671,7]
[384916276,1757626294696,-1440.8,0.00027671,7]
[384916277,1757626294706,-400.0,0.00027671,7]
[384916278,1757626294716,-763.43,0.00027671,7]
[384916279,1757626294725,-471.72,0.00027671,7]
[384916280,1757626294735,-1318.04,0.00027671,7]
[384916281,1757626294745,-400.0,0.00027671,7]
[384916282,1757626294755,-2751.65,0.00027671,7]
[384916283,1757626294764,-400.0,0.00027671,7]
[384916284,1757626294774,-400.0,0.00027671,7]
[384916285,1757626294783,-1407.75,0.00027671,7]
[384916286,1757626294794,-400.0,0.00027671,7]
[384916287,1757626294803,-400.0,0.00027671,7]
[384916288,1757626294816,-400.0,0.00027671,7]
[384916289,1757626294827,-2446.44,0.00027671,7]
[384916290,1757626294838,-542.76,0.00027671,7]
[384916291,1757626294851,-400.0,0.00027671,7]
[384916292,1757626294861,-468.1450216,0.00027671,7]
[384916293,1757626294871,-3142.63,0.00027671,7]
[384916294,1757626294881,-1662.61,0.00027671,7]
[384916295,1757626294891,-400.0,0.00027671,7]
[384916296,1757626294901,-400.0,0.00027671,7]
[384916297,1757626294912,-2401.75,0.00027671,7]
[384916298,1757626294921,-400.0,0.00027671,7]
[384916299,1757626294931,-400.0,0.00027671,7]
[384916300,1757626294941,-506.14155895,0.00027671,7]
[384916301,1757626294951,-400.0,0.00027671,7]
[384916302,1757626294960,-1845.15,0.00027671,7]
[384916303,1757626294970,-1364.82,0.00027671,7]
[384916304,1757626294979,-2704.19,0.00027671,7]
[384916305,1757626294988,-400.0,0.00027671,7]
[384916306,1757626294998,-400.0,0.00027671,7]
[384916307,1757626295008,-3732.22,0.00027671,7]
[384916308,1757626295018,-400.0,0.00027671,7]
[384916309,1757626295027,-531.41,0.00027671,7]
[384916310,1757626295038,-400.0,0.00027671,7]
[384916311,1757626295048,-2856.56,0.00027671,7]
[384916312,1757626295058,-400.0,0.00027671,7]
[384916313,1757626295068,-400.0,0.00027671,7]
[384916314,1757626295078,-2592.26,0.00027671,7]
[384916315,1757626295087,-400.0,0.00027671,7]
[384916316,1757626295096,-2191.7,0.00027671,7]
[384916317,1757626295106,-447.61,0.00027671,7]
[384916318,1757626295116,-400.0,0.00027671,7]
[384916319,1757626295126,-400.0,0.00027671,7]
[384916320,1757626295135,-400.0,0.00027671,7]
[384916321,1757626295145,-1713.18,0.00027671,7]
[384916322,1757626295155,-400.0,0.00027671,7]
[384916323,1757626295165,-400.0,0.00027671,7]
[384916324,1757626295174,-2245.51,0.00027671,7]
[384916325,1757626295184,-4339.6,0.00027671,7]
[384916326,1757626295193,-1729.18,0.00027671,7]
[384916327,1757626295205,-400.0,0.00027671,7]
[384916328,1757626295214,-1546.98,0.00027671,7]
[384916329,1757626295224,-407.85579327,0.00027671,7]
[384916330,1757626295234,-1818.62,0.00027671,7]
[384916331,1757626295244,-1297.51,0.00027671,7]
[384916332,1757626295254,-2296.45,0.00027671,7]
[384916333,1757626295264,-537.34,0.00027671,7]
[384916334,1757626295273,-2694.63,0.00027671,7]
[384916335,1757626295283,-2066.53,0.00027671,7]
[384916336,1757626295294,-846.16,0.00027671,7]
[384916337,1757626295303,-1957.82,0.00027671,7]
[384916338,1757626295313,-400.0,0.00027671,7]
[384916339,1757626295323,-400.0,0.00027671,7]
[384916340,1757626295332,-400.0,0.00027671,7]
[384916341,1757626295342,-523.92,0.00027671,7]
[384916342,1757626295352,-400.0,0.00027671,7]
[384916343,1757626295361,-400.0,0.00027671,7]
[384916344,1757626295371,-3659.24,0.00027671,7]
[384916345,1757626295381,-400.0,0.00027671,7]
[384916346,1757626295391,-400.0,0.00027671,7]
[384916347,1757626295401,-1803.04,0.00027671,7]
[384916348,1757626295411,-661.34,0.00027671,7]
[384916349,1757626295420,-2686.56,0.00027671,7]
[384916350,1757626295430,-2073.12,0.00027671,7]
[384916351,1757626295440,-400.0,0.00027671,7]
[384916352,1757626295451,-400.0,0.00027671,7]
[384916353,1757626295460,-1918.85,0.00027671,7]
[384916354,1757626295470,-434.75,0.00027671,7]
[384916355,1757626295480,-400.0,0.00027671,7]
[384916356,1757626295489,-400.0,0.00027671,7]
[384916357,1757626295499,-2458.5,0.00027671,7]
[384916358,1757626295509,-2020.5,0.00027671,7]
[384916359,1757626295519,-400.0,0.00027671,7]
[384916360,1757626295528,-1015.83,0.00027671,7]
[384916361,1757626295538,-4813.2,0.00027671,7]
[384916362,1757626295548,-400.0,0.00027671,7]
[384916363,1757626295557,-2499.11,0.00027671,7]
[384916364,1757626295567,-400.0,0.00027671,7]
[384916365,1757626295577,-853.97,0.00027671,7]
[384916366,1757626295586,-3600.0,0.00027671,7]
[384916367,1757626295596,-1195.51,0.00027671,7]
[384916368,1757626295605,-400.0,0.00027671,7]
[384916369,1757626295615,-2244.82,0.00027671,7]
[384916370,1757626295625,-400.0,0.00027671,7]
[384916371,1757626295634,-1328.25,0.00027671,7]
[384916372,1757626295644,-685.11,0.00027671,7]
[384916373,1757626295654,-400.0,0.00027671,7]
[384916374,1757626295664,-400.0,0.00027671,7]
[384916375,1757626295673,-400.0,0.00027671,7]
[384916376,1757626295684,-1955.31,0.00027671,7]
[384916377,1757626295697,-400.0,0.00027671,7]
[384916378,1757626295709,-400.0,0.00027671,7]
[384916379,1757626295718,-834.2,0.00027671,7]
[384916380,1757626295728,-2380.41,0.00027671,7]
[384916381,1757626295738,-1426.13,0.00027671,7]
[384916382,1757626295748,-705.13,0.00027671,7]
[384916383,1757626295758,-300.0,0.00027671,7]
[384916384,1757626295768,-2578.65,0.00027671,7]
[384916385,1757626295777,-400.0,0.00027671,7]
[384916386,1757626295787,-4160.25,0.00027671,7]
[384916387,1757626295796,-1343.57,0.00027671,7]
[384916388,1757626295806,-400.0,0.00027671,7]
[384916389,1757626295815,-2094.99,0.00027671,7]
[384916390,1757626295828,-2011.76,0.00027671,7]
[384916391,1757626295838,-400.0,0.00027671,7]
[384916392,1757626295851,-3877.06,0.00027671,7]
[384916393,1757626295860,-1621.81,0.00027671,7]
[384916394,1757626295871,-400.0,0.00027671,7]
[384916395,1757626295882,-2703.48,0.00027671,7]
[384916396,1757626295892,-400.0,0.00027671,7]
[384916397,1757626295902,-400.0,0.00027671,7]
[384916398,1757626295913,-1650.76,0.00027671,7]
[384916399,1757626295926,-3726.44,0.00027671,7]
[384916400,1757626295937,-2122.9,0.00027671,7]
[384916401,1757626295949,-2612.32,0.00027671,7]
[384916402,1757626296287,-400.0,0.00027671,7]
[384916403,1757626296297,-503.71,0.00027671,7]
[384916404,1757626296307,-400.0,0.00027671,7]
[384916405,1757626296317,-439.21391027,0.00027671,7]
[384916406,1757626296327,-2188.91,0.00027671,7]
[384916407,1757626296335,-400.0,0.00027671,7]
[384916408,1757626296345,-400.0,0.00027671,7]
[384916409,1757626296355,-1087.4,0.00027671,7]
[384916410,1757626296364,-400.0,0.00027671,7]
[384916411,1757626296373,-4070.79,0.00027671,7]
[384916412,1757626296383,-400.0,0.00027671,7]
[384916413,1757626296392,-2975.45,0.00027671,7]
[384916414,1757626296401,-1742.74,0.00027671,7]
[384916415,1757626296411,-979.58,0.00027671,7]
[384916416,1757626296420,-400.0,0.00027671,7]
[384916417,1757626296430,-533.91,0.00027671,7]
[384916418,1757626296439,-347.36114585,0.00027671,7]
[384916419,1757626296448,-400.0,0.00027671,7]
[384916420,1757626296458,-400.0,0.00027671,7]
[384916421,1757626296467,-362.39,0.00027671,7]
[384916422,1757626296476,-2438.02,0.00027671,7]
[384916423,1757626296486,-1292.06,0.00027671,7]
[384916424,1757626296495,-400.0,0.00027671,7]
[384916425,1757626296504,-400.0,0.00027671,7]
[384916426,1757626296514,-2566.94,0.00027671,7]
[384916427,1757626296523,-387.77780113,0.00027671,7]
[384916428,1757626296532,-2442.75,0.00027671,7]
[384916429,1757626296541,-1736.25,0.00027671,7]
[384916430,1757626296550,-400.0,0.00027671,7]
[384916431,1757626296559,-695.6,0.00027671,7]
[384916432,1757626296568,-2116.81,0.00027671,7]
[384916433,1757626296578,-499.11,0.00027671,7]
[384916434,1757626296588,-400.0,0.00027671,7]
[384916435,1757626296597,-1450.46,0.00027671,7]
[384916436,1757626296607,-592.34,0.00027671,7]
[384916437,1757626296616,-493.02,0.00027671,7]
[384916438,1757626296625,-961.25,0.00027671,7]
[384916439,1757626296634,-1703.49,0.00027671,7]
[384916440,1757626296644,-400.0,0.00027671,7]
[384916441,1757626296653,-1856.8,0.00027671,7]
[384916442,1757626296662,-1202.35,0.00027671,7]
[384916443,1757626296672,-2157.95,0.00027671,7]
[384916444,1757626296681,-3623.57,0.00027671,7]
[384916445,1757626296691,-1835.17,0.00027671,7]
[384916446,1757626296700,-2647.48,0.00027671,7]
[384916447,1757626296710,-2198.0,0.00027671,7]
[384916448,1757626296720,-2535.45,0.00027671,7]
[384916449,1757626296729,-3779.48,0.00027671,7]
[384916450,1757626296739,-2166.01,0.00027671,7]
[384916451,1757626296749,-966.77,0.00027671,7]
[384916452,1757626296758,-400.0,0.00027671,7]
[384916453,1757626296768,-400.0,0.00027671,7]
[384916454,1757626296777,-2340.5,0.00027671,7]
[384916455,1757626296787,-400.0,0.00027671,7]
[384916456,1757626296797,-400.0,0.00027671,7]
[384916457,1757626296806,-2998.24,0.00027671,7]